[Event "FIDE World Rapid Chess Championship 2021"]
[White "Gajewski, Grzegorz"]
[Black "Nasuta, Grzegorz"]
[WhiteFideId "1116207"]
[BlackFideId "1141686"]
[WhiteElo "2496"]
[BlackElo "2345"]
[Result "1/2-1/2"]
[Round "13"]
[TimeControl "900+10"]
[Date "2021.12.28"]
[WhiteClock "0:00:15"]
[BlackClock "0:00:43"]

1. Nf3 {[%clk 0:15:00]}  d5 {[%clk 0:15:00]} 2. g3 {[%clk 0:15:00]}  c5 {[%clk 0:14:50]} 3. Bg2 {[%clk 0:15:38]}  Nf6 {[%clk 0:14:50]} 4. O-O {[%clk 0:15:38]}  e6 {[%clk 0:14:50]} 5. d3 {[%clk 0:15:38]}  Nc6 {[%clk 0:14:50]} 6. a4 {[%clk 0:15:38]}  Be7 {[%clk 0:14:50]} 7. Bf4 {[%clk 0:15:38]}  b6 {[%clk 0:14:50]} 8. Nc3 {[%clk 0:15:38]}  Bb7 {[%clk 0:14:50]} 9. e4 {[%clk 0:15:38]}  O-O {[%clk 0:15:01]} 10. e5 {[%clk 0:14:21]}  Nd7 {[%clk 0:15:01]} 11. Re1 {[%clk 0:14:21]}  a6 {[%clk 0:14:06]} 12. h4 {[%clk 0:13:54]}  Qc7 {[%clk 0:14:06]} 13. Ng5 {[%clk 0:14:01]}  Nd4 {[%clk 0:08:38]} 14. Nxd5 {[%clk 0:12:09]}  Bxd5 {[%clk 0:07:08]} 15. Bxd5 {[%clk 0:12:09]}  Bxg5 {[%clk 0:07:08]} 16. hxg5 {[%clk 0:12:09]}  exd5 {[%clk 0:07:08]} 17. e6 {[%clk 0:12:09]}  Qc6 {[%clk 0:07:08]} 18. exd7 {[%clk 0:12:09]}  Qxd7 {[%clk 0:07:08]} 19. c3 {[%clk 0:12:09]}  Ne6 {[%clk 0:07:13]} 20. Qg4 {[%clk 0:08:22]}  d4 {[%clk 0:07:13]} 21. c4 {[%clk 0:08:22]}  Qc6 {[%clk 0:04:42]} 22. Bd2 {[%clk 0:08:10]}  Rfe8 {[%clk 0:03:38]} 23. b3 {[%clk 0:06:37]}  Nf8 {[%clk 0:03:38]} 24. Rxe8 {[%clk 0:06:35]}  Rxe8 {[%clk 0:01:37]} 25. Re1 {[%clk 0:06:35]}  Rxe1+ {[%clk 0:01:37]} 26. Bxe1 {[%clk 0:06:35]}  Ng6 {[%clk 0:01:37]} 27. Qf5 {[%clk 0:06:35]}  a5 {[%clk 0:01:37]} 28. Bd2 {[%clk 0:03:50]}  f6 {[%clk 0:01:16]} 29. gxf6 {[%clk 0:03:50]}  gxf6 {[%clk 0:01:16]} 30. f3 {[%clk 0:03:50]}  Kg7 {[%clk 0:01:16]} 31. Kf2 {[%clk 0:03:50]}  Ne5 {[%clk 0:00:25]} 32. g4 {[%clk 0:03:01]}  Qe8 {[%clk 0:00:25]} 33. f4 {[%clk 0:03:01]}  Nf7 {[%clk 0:00:25]} 34. Qd5 {[%clk 0:00:53]}  Qc8 {[%clk 0:00:19]} 35. Kf3 {[%clk 0:00:53]}  Nh6 {[%clk 0:00:19]} 36. f5 {[%clk 0:00:53]}  Nf7 {[%clk 0:00:19]} 37. Bf4 {[%clk 0:00:53]}  h6 {[%clk 0:00:19]} 38. Kf2 {[%clk 0:00:53]}  Ng5 {[%clk 0:00:19]} 39. Kg3 {[%clk 0:00:53]}  Nf7 {[%clk 0:00:19]} 40. Qe4 {[%clk 0:00:53]}  Qd7 {[%clk 0:00:19]} 41. Kg2 {[%clk 0:00:53]}  Ng5 {[%clk 0:00:43]} 42. Bxg5 {[%clk 0:00:15]}  hxg5 {[%clk 0:00:43]} 43. Kf3 {[%clk 0:00:15]}  Kf7 {[%clk 0:00:43]} 44. Qa8 {[%clk 0:00:15]}  Qc7 {[%clk 0:00:43]} 45. Kg2 {[%clk 0:00:15]}  Qf4 {[%clk 0:00:43]} 46. Qb7+ {[%clk 0:00:15]}  Kf8 {[%clk 0:00:43]} 47. Qf3 {[%clk 0:00:15]}  Qxf3+ {[%clk 0:00:43]} 1/2-1/2


[Site "http://www.Chess.com"]

[Event "FIDE World Rapid Chess Championship 2021"]
[White "Bellahcene, Bilel"]
[Black "Janik, Igor"]
[WhiteFideId "696358"]
[BlackFideId "1159259"]
[WhiteElo "2397"]
[BlackElo "2462"]
[Result "1-0"]
[Round "13"]
[TimeControl "900+10"]
[Date "2021.12.28"]
[WhiteClock "0:01:48"]
[BlackClock "0:08:18"]

1. e4 {[%clk 0:14:52]}  Nf6 {[%clk 0:15:41]} 2. e5 {[%clk 0:14:52]}  Nd5 {[%clk 0:15:41]} 3. d4 {[%clk 0:14:52]}  d6 {[%clk 0:15:41]} 4. Nf3 {[%clk 0:14:52]}  Bg4 {[%clk 0:15:41]} 5. Be2 {[%clk 0:14:52]}  e6 {[%clk 0:15:41]} 6. O-O {[%clk 0:14:52]}  Be7 {[%clk 0:15:41]} 7. h3 {[%clk 0:14:52]}  Bh5 {[%clk 0:15:41]} 8. c4 {[%clk 0:13:22]}  Nb6 {[%clk 0:16:05]} 9. Be3 {[%clk 0:13:22]}  O-O {[%clk 0:16:05]} 10. Nbd2 {[%clk 0:13:22]}  Nc6 {[%clk 0:16:05]} 11. a3 {[%clk 0:13:22]}  dxe5 {[%clk 0:16:10]} 12. dxe5 {[%clk 0:10:52]}  a5 {[%clk 0:16:10]} 13. Qc2 {[%clk 0:08:22]}  Nxe5 {[%clk 0:16:00]} 14. Rad1 {[%clk 0:08:22]}  Bg6 {[%clk 0:16:00]} 15. Qc3 {[%clk 0:08:22]}  Nc6 {[%clk 0:16:00]} 16. Ne5 {[%clk 0:08:30]}  Nxe5 {[%clk 0:14:11]} 17. Qxe5 {[%clk 0:08:30]}  Bf6 {[%clk 0:14:11]} 18. Qg3 {[%clk 0:08:30]}  Qe7 {[%clk 0:14:11]} 19. Bf4 {[%clk 0:08:30]}  e5 {[%clk 0:14:11]} 20. Be3 {[%clk 0:08:30]}  Na4 {[%clk 0:14:11]} 21. Rc1 {[%clk 0:06:56]}  Nxb2 {[%clk 0:14:17]} 22. c5 {[%clk 0:06:56]}  Nd3 {[%clk 0:14:17]} 23. Bxd3 {[%clk 0:06:56]}  Bxd3 {[%clk 0:14:17]} 24. Rfe1 {[%clk 0:06:56]}  e4 {[%clk 0:14:35]} 25. Nc4 {[%clk 0:04:11]}  Bxc4 {[%clk 0:14:35]} 26. Rxc4 {[%clk 0:04:11]}  Be5 {[%clk 0:14:35]} 27. Rxe4 {[%clk 0:04:11]}  Bxg3 {[%clk 0:12:18]} 28. Rxe7 {[%clk 0:04:31]}  Bh4 {[%clk 0:12:18]} 29. Rxc7 {[%clk 0:04:31]}  Rab8 {[%clk 0:12:18]} 30. Rb1 {[%clk 0:04:31]}  g6 {[%clk 0:12:18]} 31. g3 {[%clk 0:04:31]}  Bf6 {[%clk 0:12:18]} 32. a4 {[%clk 0:04:31]}  Bc3 {[%clk 0:12:18]} 33. Rbxb7 {[%clk 0:04:18]}  Rxb7 {[%clk 0:11:52]} 34. Rxb7 {[%clk 0:04:18]}  Rc8 {[%clk 0:11:52]} 35. Rb6 {[%clk 0:04:18]}  f6 {[%clk 0:11:52]} 36. h4 {[%clk 0:04:18]}  Bb4 {[%clk 0:11:52]} 37. c6 {[%clk 0:04:18]}  Kf7 {[%clk 0:11:52]} 38. Bf4 {[%clk 0:04:18]}  Be7 {[%clk 0:11:52]} 39. Kg2 {[%clk 0:04:18]}  g5 {[%clk 0:11:44]} 40. hxg5 {[%clk 0:03:11]}  fxg5 {[%clk 0:11:44]} 41. Bd2 {[%clk 0:03:11]}  Ke6 {[%clk 0:11:44]} 42. Ra6 {[%clk 0:03:11]}  Bb4 {[%clk 0:09:50]} 43. Bxb4 {[%clk 0:03:10]}  axb4 {[%clk 0:09:50]} 44. Rb6 {[%clk 0:03:10]}  Kd6 {[%clk 0:09:50]} 45. Rxb4 {[%clk 0:03:10]}  Rxc6 {[%clk 0:09:50]} 46. a5 {[%clk 0:01:54]}  Kc5 {[%clk 0:09:11]} 47. Rb7 {[%clk 0:01:54]}  h6 {[%clk 0:09:11]} 48. Kh3 {[%clk 0:00:48]}  Rf6 {[%clk 0:07:44]} 49. Rb6 {[%clk 0:00:48]}  Rxf2 {[%clk 0:07:44]} 50. Rxh6 {[%clk 0:00:48]}  Ra2 {[%clk 0:07:44]} 51. Rg6 {[%clk 0:00:48]}  Kd5 {[%clk 0:07:44]} 52. Rxg5+ {[%clk 0:00:48]}  Ke6 {[%clk 0:07:44]} 53. Rb5 {[%clk 0:00:48]}  Ra4 {[%clk 0:07:44]} 54. g4 {[%clk 0:00:48]}  Kf6 {[%clk 0:07:44]} 55. Kh4 {[%clk 0:00:48]}  Ra1 {[%clk 0:07:44]} 56. Rb6+ {[%clk 0:00:48]}  Kf7 {[%clk 0:07:44]} 57. a6 {[%clk 0:00:48]}  Ra5 {[%clk 0:07:44]} 58. g5 {[%clk 0:00:48]}  Ra1 {[%clk 0:07:44]} 59. Kh5 {[%clk 0:00:48]}  Rh1+ {[%clk 0:07:44]} 60. Kg4 {[%clk 0:00:48]}  Ra1 {[%clk 0:08:18]} 61. g6+ {[%clk 0:01:48]}  Kg7 {[%clk 0:08:18]} 62. Kf5 {[%clk 0:01:48]}  Ra5+ {[%clk 0:08:18]} 63. Ke4 {[%clk 0:01:48]}  Kh6 {[%clk 0:08:18]} 64. Kd4 {[%clk 0:01:48]}  Kg7 {[%clk 0:08:18]} 65. Kc4 {[%clk 0:01:48]}  Ra1 {[%clk 0:08:18]} 66. Kc5 {[%clk 0:01:48]}  Rc1+ {[%clk 0:08:18]} 67. Kd5 {[%clk 0:01:48]} 1-0


[Site "http://www.Chess.com"]

[Event "FIDE World Rapid Chess Championship 2021"]
[White "Faizrakhmanov, Ramil"]
[Black "Teclaf, Pawel"]
[WhiteFideId "24103209"]
[BlackFideId "1185934"]
[WhiteElo "2461"]
[BlackElo "2345"]
[Result "1-0"]
[Round "13"]
[TimeControl "900+10"]
[Date "2021.12.28"]
[WhiteClock "0:00:35"]
[BlackClock "0:00:00"]

1. d4 {[%clk 0:15:00]}  e6 {[%clk 0:15:00]} 2. c4 {[%clk 0:15:00]}  b6 {[%clk 0:15:00]} 3. Nf3 {[%clk 0:15:19]}  Bb7 {[%clk 0:15:18]} 4. g3 {[%clk 0:15:19]}  Nf6 {[%clk 0:15:18]} 5. Bg2 {[%clk 0:15:19]}  g6 {[%clk 0:15:18]} 6. Nc3 {[%clk 0:15:19]}  Bg7 {[%clk 0:15:18]} 7. d5 {[%clk 0:15:19]}  exd5 {[%clk 0:15:18]} 8. cxd5 {[%clk 0:15:19]}  O-O {[%clk 0:15:18]} 9. O-O {[%clk 0:15:19]}  Re8 {[%clk 0:15:18]} 10. Nd4 {[%clk 0:15:19]}  Na6 {[%clk 0:15:18]} 11. e3 {[%clk 0:13:58]}  h5 {[%clk 0:15:33]} 12. h3 {[%clk 0:13:58]}  Nb4 {[%clk 0:12:13]} 13. Qb3 {[%clk 0:13:03]}  Nd3 {[%clk 0:12:13]} 14. Rd1 {[%clk 0:13:03]}  Nc5 {[%clk 0:10:51]} 15. Qc2 {[%clk 0:12:55]}  a5 {[%clk 0:10:51]} 16. b3 {[%clk 0:12:55]}  d6 {[%clk 0:10:51]} 17. Bb2 {[%clk 0:12:55]}  Qd7 {[%clk 0:07:00]} 18. a3 {[%clk 0:12:37]}  h4 {[%clk 0:05:55]} 19. g4 {[%clk 0:12:37]}  Na6 {[%clk 0:05:55]} 20. Rac1 {[%clk 0:10:45]}  Rac8 {[%clk 0:04:33]} 21. Qe2 {[%clk 0:10:45]}  Nc5 {[%clk 0:04:33]} 22. b4 {[%clk 0:10:45]}  axb4 {[%clk 0:04:33]} 23. axb4 {[%clk 0:10:45]}  Nce4 {[%clk 0:04:33]} 24. Nxe4 {[%clk 0:10:45]}  Nxe4 {[%clk 0:04:33]} 25. Nc6 {[%clk 0:08:58]}  Bh6 {[%clk 0:04:16]} 26. Bxe4 {[%clk 0:08:29]}  Rxe4 {[%clk 0:02:53]} 27. Qf3 {[%clk 0:08:29]}  f5 {[%clk 0:02:53]} 28. gxf5 {[%clk 0:05:40]}  Qxf5 {[%clk 0:03:11]} 29. Qxf5 {[%clk 0:05:40]}  gxf5 {[%clk 0:03:11]} 30. Rd4 {[%clk 0:05:40]}  Rce8 {[%clk 0:03:11]} 31. Rxe4 {[%clk 0:03:58]}  Rxe4 {[%clk 0:02:20]} 32. Nd4 {[%clk 0:03:58]}  f4 {[%clk 0:02:20]} 33. f3 {[%clk 0:03:58]}  Rxe3 {[%clk 0:02:00]} 34. Nf5 {[%clk 0:02:30]}  Rxf3 {[%clk 0:02:00]} 35. Nxh6+ {[%clk 0:02:30]}  Kf8 {[%clk 0:02:00]} 36. Rxc7 {[%clk 0:02:30]}  Bxd5 {[%clk 0:02:00]} 37. Nf5 {[%clk 0:02:30]}  Rxh3 {[%clk 0:02:00]} 38. Bg7+ {[%clk 0:01:10]}  Ke8 {[%clk 0:01:17]} 39. Bf6 {[%clk 0:01:10]}  Kf8 {[%clk 0:01:17]} 40. Nxd6 {[%clk 0:01:10]}  Kg8 {[%clk 0:01:17]} 41. Rg7+ {[%clk 0:01:10]}  Kf8 {[%clk 0:01:17]} 42. Rh7 {[%clk 0:01:10]}  Rg3+ {[%clk 0:00:25]} 43. Kf2 {[%clk 0:00:18]}  h3 {[%clk 0:00:25]} 44. Rh8+ {[%clk 0:00:18]}  Bg8 {[%clk 0:00:25]} 45. Nf5 {[%clk 0:00:18]}  Rg6 {[%clk 0:00:25]} 46. Be5 {[%clk 0:00:18]}  Rg5 {[%clk 0:00:25]} 47. Bd6+ {[%clk 0:00:18]}  Ke8 {[%clk 0:00:25]} 48. Nh6 {[%clk 0:00:18]}  Rh5 {[%clk 0:00:25]} 49. Rxg8+ {[%clk 0:00:18]}  Kd7 {[%clk 0:00:25]} 50. Bxf4 {[%clk 0:00:18]}  h2 {[%clk 0:00:19]} 51. Rg7+ {[%clk 0:00:18]}  Kc8 {[%clk 0:00:19]} 52. Rc7+ {[%clk 0:00:18]}  Kd8 {[%clk 0:00:19]} 53. Nf7+ {[%clk 0:00:18]}  Ke8 {[%clk 0:00:19]} 54. Nd6+ {[%clk 0:00:18]}  Kd8 {[%clk 0:00:19]} 55. Nb7+ {[%clk 0:00:18]}  Ke8 {[%clk 0:00:19]} 56. Bxh2 {[%clk 0:00:18]}  Rxh2+ {[%clk 0:00:19]} 57. Ke3 {[%clk 0:00:18]}  Rb2 {[%clk 0:00:19]} 58. b5 {[%clk 0:00:18]}  Rb3+ {[%clk 0:00:19]} 59. Kd4 {[%clk 0:00:18]}  Rb1 {[%clk 0:00:19]} 60. Rh7 {[%clk 0:00:35]}  Rb2 {[%clk 0:00:00]} 61. Kc4 {[%clk 0:00:35]}  Rb1 {[%clk 0:00:00]} 62. Nd6+ {[%clk 0:00:35]}  Kd8 {[%clk 0:00:00]} 63. Ne4 {[%clk 0:00:35]}  Rd1 {[%clk 0:00:00]} 64. Nc3 {[%clk 0:00:35]}  Rd6 {[%clk 0:00:00]} 65. Nd5 {[%clk 0:00:35]}  Rg6 {[%clk 0:00:00]} 66. Rf7 {[%clk 0:00:35]}  Rh6 {[%clk 0:00:00]} 67. Rf6 {[%clk 0:00:35]}  Rh4+ {[%clk 0:00:00]} 68. Kd3 {[%clk 0:00:35]}  Rh3+ {[%clk 0:00:00]} 69. Kd4 {[%clk 0:00:35]} 1-0


[Site "http://www.Chess.com"]

[Event "FIDE World Rapid Chess Championship 2021"]
[White "Wieczorek, Oskar"]
[Black "Erdos, Viktor"]
[WhiteFideId "1133950"]
[BlackFideId "719978"]
[WhiteElo "2367"]
[BlackElo "2601"]
[Result "1/2-1/2"]
[Round "13"]
[TimeControl "900+10"]
[Date "2021.12.28"]
[WhiteClock "0:16:54"]
[BlackClock "0:13:24"]

1. e4 {[%clk 0:15:00]}  e5 {[%clk 0:15:00]} 2. Nf3 {[%clk 0:15:00]}  Nc6 {[%clk 0:15:00]} 3. Nc3 {[%clk 0:15:00]}  Nf6 {[%clk 0:15:00]} 4. a3 {[%clk 0:15:00]}  d5 {[%clk 0:15:03]} 5. Bb5 {[%clk 0:16:01]}  Nxe4 {[%clk 0:15:03]} 6. Qe2 {[%clk 0:16:01]}  Qd6 {[%clk 0:15:03]} 7. Nxe4 {[%clk 0:16:01]}  dxe4 {[%clk 0:15:03]} 8. Qxe4 {[%clk 0:16:01]}  Bd7 {[%clk 0:15:03]} 9. d4 {[%clk 0:16:01]}  O-O-O {[%clk 0:15:03]} 10. dxe5 {[%clk 0:16:01]}  Nxe5 {[%clk 0:13:24]} 11. Bxd7+ {[%clk 0:16:54]}  Qxd7 {[%clk 0:13:24]} 12. O-O {[%clk 0:16:54]}  Nxf3+ {[%clk 0:13:24]} 13. Qxf3 {[%clk 0:16:54]} 1/2-1/2


[Site "http://www.Chess.com"]

[Event "FIDE World Rapid Chess Championship 2021"]
[White "Klekowski, Maciej"]
[Black "Jakubowski, Krzysztof"]
[WhiteFideId "1132717"]
[BlackFideId "1112848"]
[WhiteElo "2528"]
[BlackElo "2399"]
[Result "1/2-1/2"]
[Round "13"]
[TimeControl "900+10"]
[Date "2021.12.28"]
[WhiteClock "0:14:41"]
[BlackClock "0:12:17"]

1. c4 {[%clk 0:15:00]}  e6 {[%clk 0:15:00]} 2. Nf3 {[%clk 0:15:00]}  d5 {[%clk 0:15:00]} 3. g3 {[%clk 0:15:00]}  dxc4 {[%clk 0:15:20]} 4. Qa4+ {[%clk 0:15:47]}  Nd7 {[%clk 0:15:20]} 5. Qxc4 {[%clk 0:15:47]}  c5 {[%clk 0:15:20]} 6. Bg2 {[%clk 0:15:47]}  a6 {[%clk 0:15:20]} 7. Qb3 {[%clk 0:15:47]}  Ra7 {[%clk 0:13:52]} 8. a4 {[%clk 0:14:36]}  b6 {[%clk 0:13:52]} 9. d4 {[%clk 0:14:36]}  Bb7 {[%clk 0:13:52]} 10. O-O {[%clk 0:14:36]}  Ngf6 {[%clk 0:13:52]} 11. Rd1 {[%clk 0:14:41]}  Qa8 {[%clk 0:12:17]} 1/2-1/2


[Site "http://www.Chess.com"]

[Event "FIDE World Rapid Chess Championship 2021"]
[White "Lima, Darcy"]
[Black "Thybo, Jesper Sondergaard"]
[WhiteFideId "2100045"]
[BlackFideId "1438832"]
[WhiteElo "2505"]
[BlackElo "2401"]
[Result "1/2-1/2"]
[Round "13"]
[TimeControl "900+10"]
[Date "2021.12.28"]
[WhiteClock "0:00:25"]
[BlackClock "0:00:28"]

1. d4 {[%clk 0:15:00]}  Nf6 {[%clk 0:15:00]} 2. c4 {[%clk 0:15:00]}  g6 {[%clk 0:15:00]} 3. Nc3 {[%clk 0:15:00]}  d5 {[%clk 0:15:00]} 4. Nf3 {[%clk 0:15:37]}  Bg7 {[%clk 0:15:41]} 5. Bg5 {[%clk 0:15:37]}  Ne4 {[%clk 0:15:41]} 6. cxd5 {[%clk 0:15:37]}  Nxg5 {[%clk 0:15:41]} 7. Nxg5 {[%clk 0:15:37]}  e6 {[%clk 0:15:41]} 8. Nf3 {[%clk 0:15:37]}  exd5 {[%clk 0:15:41]} 9. e3 {[%clk 0:15:37]}  a5 {[%clk 0:15:41]} 10. Be2 {[%clk 0:15:37]}  O-O {[%clk 0:15:41]} 11. O-O {[%clk 0:15:37]}  c6 {[%clk 0:15:41]} 12. a3 {[%clk 0:15:00]}  Qd6 {[%clk 0:15:05]} 13. Na4 {[%clk 0:15:00]}  Bf5 {[%clk 0:15:05]} 14. Bd3 {[%clk 0:15:00]}  Bg4 {[%clk 0:13:00]} 15. h3 {[%clk 0:14:50]}  Bxf3 {[%clk 0:13:00]} 16. Qxf3 {[%clk 0:14:50]}  Nd7 {[%clk 0:13:00]} 17. Rac1 {[%clk 0:14:50]}  b6 {[%clk 0:13:00]} 18. Rc2 {[%clk 0:14:50]}  c5 {[%clk 0:13:00]} 19. Bb5 {[%clk 0:14:50]}  Rab8 {[%clk 0:12:24]} 20. dxc5 {[%clk 0:14:23]}  Nxc5 {[%clk 0:12:24]} 21. Rd1 {[%clk 0:14:23]}  Rbd8 {[%clk 0:11:55]} 22. Rcd2 {[%clk 0:12:18]}  Nxa4 {[%clk 0:09:43]} 23. Bxa4 {[%clk 0:12:18]}  Qf6 {[%clk 0:08:23]} 24. Qxf6 {[%clk 0:10:32]}  Bxf6 {[%clk 0:08:23]} 25. Bc6 {[%clk 0:10:32]}  d4 {[%clk 0:05:59]} 26. exd4 {[%clk 0:10:32]}  Rc8 {[%clk 0:05:59]} 27. d5 {[%clk 0:10:32]}  Be5 {[%clk 0:05:59]} 28. Kf1 {[%clk 0:10:32]}  Bd6 {[%clk 0:05:59]} 29. Ke2 {[%clk 0:10:32]}  Rfd8 {[%clk 0:05:59]} 30. Rc2 {[%clk 0:10:32]}  Bc5 {[%clk 0:05:38]} 31. Rc4 {[%clk 0:09:35]}  Rc7 {[%clk 0:05:38]} 32. b4 {[%clk 0:09:35]}  Re7+ {[%clk 0:05:38]} 33. Kf3 {[%clk 0:09:35]}  axb4 {[%clk 0:05:38]} 34. axb4 {[%clk 0:09:35]}  Bd6 {[%clk 0:05:38]} 35. Ra1 {[%clk 0:08:24]}  Rb8 {[%clk 0:05:20]} 36. b5 {[%clk 0:06:39]}  Kf8 {[%clk 0:04:29]} 37. g3 {[%clk 0:06:39]}  h5 {[%clk 0:04:29]} 38. h4 {[%clk 0:06:39]}  Rc8 {[%clk 0:03:35]} 39. Rca4 {[%clk 0:05:24]}  Re5 {[%clk 0:03:35]} 40. Ra7 {[%clk 0:05:24]}  Bc5 {[%clk 0:03:35]} 41. R1a2 {[%clk 0:05:24]}  Rd8 {[%clk 0:02:39]} 42. Re2 {[%clk 0:04:13]}  Rxe2 {[%clk 0:02:39]} 43. Kxe2 {[%clk 0:04:13]}  Rd6 {[%clk 0:02:39]} 44. f4 {[%clk 0:04:13]}  Rd8 {[%clk 0:02:39]} 45. Kf3 {[%clk 0:04:13]}  Kg7 {[%clk 0:02:05]} 46. Bd7 {[%clk 0:02:58]}  Kf6 {[%clk 0:02:05]} 47. Ke4 {[%clk 0:02:58]}  Rb8 {[%clk 0:02:05]} 48. Bc6 {[%clk 0:02:58]}  Rd8 {[%clk 0:02:05]} 49. Kf3 {[%clk 0:02:58]}  Kg7 {[%clk 0:01:42]} 50. Ke2 {[%clk 0:01:36]}  Kf6 {[%clk 0:01:42]} 51. Kf1 {[%clk 0:01:36]}  Kg7 {[%clk 0:01:42]} 52. Kg2 {[%clk 0:01:36]}  Kf6 {[%clk 0:01:42]} 53. Kf3 {[%clk 0:01:36]}  Kg7 {[%clk 0:01:42]} 54. Rc7 {[%clk 0:01:36]}  Bd6 {[%clk 0:01:42]} 55. Rb7 {[%clk 0:01:36]}  Bc5 {[%clk 0:01:42]} 56. Ra7 {[%clk 0:01:36]}  Kf6 {[%clk 0:01:42]} 57. Ke4 {[%clk 0:01:36]}  Bf2 {[%clk 0:01:42]} 58. Ra3 {[%clk 0:01:20]}  Bc5 {[%clk 0:01:53]} 59. Rf3 {[%clk 0:01:20]}  Rg8 {[%clk 0:01:53]} 60. Rd3 {[%clk 0:01:20]}  Ke7 {[%clk 0:01:53]} 61. Rd2 {[%clk 0:01:20]}  Kd6 {[%clk 0:01:53]} 62. Ra2 {[%clk 0:01:20]}  f5+ {[%clk 0:01:53]} 63. Kd3 {[%clk 0:01:20]}  Rg7 {[%clk 0:01:53]} 64. Re2 {[%clk 0:01:01]}  Re7 {[%clk 0:01:06]} 65. Be8 {[%clk 0:01:01]}  Bf2 {[%clk 0:01:06]} 66. Rxe7 {[%clk 0:01:01]}  Kxe7 {[%clk 0:01:06]} 67. Bxg6 {[%clk 0:01:01]}  Bxg3 {[%clk 0:01:06]} 68. Ke3 {[%clk 0:01:01]}  Kf6 {[%clk 0:01:06]} 69. Bxh5 {[%clk 0:01:01]}  Bxh4 {[%clk 0:01:06]} 70. Bd1 {[%clk 0:00:25]}  Ke7 {[%clk 0:00:28]} 71. Bc2 {[%clk 0:00:25]}  Kd6 {[%clk 0:00:28]} 1/2-1/2


[Site "http://www.Chess.com"]

[Event "FIDE World Rapid Chess Championship 2021"]
[White "Kolosowski, Mateusz"]
[Black "Kantor, Gergely"]
[WhiteFideId "1129708"]
[BlackFideId "751499"]
[WhiteElo "2371"]
[BlackElo "2454"]
[Result "0-1"]
[Round "13"]
[TimeControl "900+10"]
[Date "2021.12.28"]
[WhiteClock "0:00:38"]
[BlackClock "0:01:46"]

1. e4 {[%clk 0:15:00]}  Nc6 {[%clk 0:15:00]} 2. Nf3 {[%clk 0:15:00]}  d6 {[%clk 0:15:00]} 3. d4 {[%clk 0:15:00]}  Nf6 {[%clk 0:15:00]} 4. Nc3 {[%clk 0:15:13]}  g6 {[%clk 0:15:44]} 5. h3 {[%clk 0:15:13]}  Bg7 {[%clk 0:15:44]} 6. Be2 {[%clk 0:15:13]}  O-O {[%clk 0:15:44]} 7. O-O {[%clk 0:15:13]}  a6 {[%clk 0:15:44]} 8. Bg5 {[%clk 0:13:49]}  b5 {[%clk 0:14:57]} 9. a3 {[%clk 0:13:49]}  h6 {[%clk 0:14:57]} 10. Be3 {[%clk 0:13:49]}  Bb7 {[%clk 0:14:57]} 11. Qd2 {[%clk 0:13:29]}  Kh7 {[%clk 0:14:27]} 12. Rad1 {[%clk 0:13:29]}  e6 {[%clk 0:14:27]} 13. Qc1 {[%clk 0:13:29]}  Ne7 {[%clk 0:14:27]} 14. e5 {[%clk 0:11:17]}  Nfd5 {[%clk 0:14:23]} 15. Nxd5 {[%clk 0:11:17]}  Bxd5 {[%clk 0:14:23]} 16. Bf4 {[%clk 0:11:17]}  Nf5 {[%clk 0:14:23]} 17. b3 {[%clk 0:11:17]}  Rb8 {[%clk 0:14:23]} 18. Rfe1 {[%clk 0:11:17]}  Qd7 {[%clk 0:13:46]} 19. g4 {[%clk 0:09:23]}  Ne7 {[%clk 0:13:46]} 20. Qe3 {[%clk 0:06:57]}  Ba8 {[%clk 0:13:47]} 21. c4 {[%clk 0:06:57]}  bxc4 {[%clk 0:13:47]} 22. bxc4 {[%clk 0:06:57]}  Rb2 {[%clk 0:13:47]} 23. Bf1 {[%clk 0:06:51]}  Rfb8 {[%clk 0:12:58]} 24. Rd3 {[%clk 0:06:51]}  d5 {[%clk 0:12:58]} 25. c5 {[%clk 0:06:51]}  Bc6 {[%clk 0:12:58]} 26. Rc3 {[%clk 0:06:51]}  Bb5 {[%clk 0:12:58]} 27. Bg2 {[%clk 0:06:51]}  Ba4 {[%clk 0:12:33]} 28. Rec1 {[%clk 0:05:10]}  Ra2 {[%clk 0:12:33]} 29. c6 {[%clk 0:05:10]}  Nxc6 {[%clk 0:12:33]} 30. Bf1 {[%clk 0:05:10]}  Rbb2 {[%clk 0:12:33]} 31. Bxa6 {[%clk 0:04:06]}  Qe8 {[%clk 0:11:17]} 32. h4 {[%clk 0:04:06]}  Qa8 {[%clk 0:11:17]} 33. Bd3 {[%clk 0:04:06]}  Rxf2 {[%clk 0:11:17]} 34. Qxf2 {[%clk 0:04:06]}  Rxf2 {[%clk 0:11:17]} 35. Kxf2 {[%clk 0:04:06]}  Kg8 {[%clk 0:07:09]} 36. Be3 {[%clk 0:03:46]}  Bf8 {[%clk 0:07:09]} 37. Kg3 {[%clk 0:03:46]}  Kg7 {[%clk 0:07:09]} 38. h5 {[%clk 0:03:46]}  g5 {[%clk 0:07:09]} 39. Ng1 {[%clk 0:03:46]}  Be7 {[%clk 0:07:09]} 40. Nf3 {[%clk 0:03:46]}  Kg8 {[%clk 0:06:58]} 41. Nd2 {[%clk 0:02:30]}  f6 {[%clk 0:06:58]} 42. exf6 {[%clk 0:02:30]}  Bxf6 {[%clk 0:06:58]} 43. Nb3 {[%clk 0:02:30]}  e5 {[%clk 0:06:58]} 44. Rc5 {[%clk 0:01:47]}  exd4 {[%clk 0:05:47]} 45. Bf2 {[%clk 0:01:47]}  Be5+ {[%clk 0:05:47]} 46. Kg2 {[%clk 0:01:47]}  Bf4 {[%clk 0:05:47]} 47. Rb1 {[%clk 0:01:47]}  Qf8 {[%clk 0:05:11]} 48. Rxd5 {[%clk 0:01:08]}  Ne5 {[%clk 0:05:11]} 49. Rxd4 {[%clk 0:00:14]}  Bc6+ {[%clk 0:02:51]} 50. Be4 {[%clk 0:00:14]}  Bxe4+ {[%clk 0:02:51]} 51. Rxe4 {[%clk 0:00:14]}  Qa8 {[%clk 0:02:51]} 52. Nc5 {[%clk 0:00:14]}  Nd3 {[%clk 0:02:51]} 53. Kf3 {[%clk 0:00:14]}  Nxf2 {[%clk 0:02:51]} 54. Kxf2 {[%clk 0:00:14]}  Bd6 {[%clk 0:02:51]} 55. Nb7 {[%clk 0:00:14]}  Qxa3 {[%clk 0:01:46]} 56. Rb5 {[%clk 0:00:38]}  Bf4 {[%clk 0:01:46]} 57. Nc5 {[%clk 0:00:38]}  c6 {[%clk 0:01:46]} 0-1


[Site "http://www.Chess.com"]